bitfinex-derivatives/quotes_SOLF0:USTF0_20251122
["timestamp","ask_amount","ask_price","bid_price","bid_amount"]
[1763798963810,5.88996377,127.07,127.05,18.33695106]
[1763798964104,3.2542795,127.08,127.05,18.33695106]
[1763798964303,5.88972664,127.07,127.05,18.33695106]
[1763798964492,3.2542795,127.08,127.05,18.33695106]
[1763798964693,5.88997202,127.07,127.05,18.33695106]
[1763798964893,3.2542795,127.08,127.05,18.33695106]
[1763798965203,5.89044942,127.07,127.05,18.33695106]
[1763798965402,3.2542795,127.08,127.05,18.33695106]
[1763798965603,3.2542795,127.08,127.05,16.59695106]
[1763798965604,3.2,127.06,127.05,16.59695106]
[1763798965801,3.2542795,127.08,127.06,1.74]
[1763798966005,5.89098613,127.07,127.05,18.33695106]
[1763798966301,3.2542795,127.08,127.05,18.33695106]
[1763798966497,5.89155345,127.07,127.05,18.33695106]
[1763798966699,3.2542795,127.08,127.05,18.33695106]
[1763798966899,5.8916166,127.07,127.05,18.33695106]
[1763798967103,0.0542795,127.08,127.06,1.74]
[1763798967402,5.89174259,127.07,127.06,1.74]
[1763798967598,0.0542795,127.08,127.06,1.74]
[1763798967998,0.0542795,127.08,127.06,8.8284]
[1763798968500,0.0542795,127.08,127.07,1.74]
[1763798970800,0.0542795,127.08,127.05,16.59695106]
[1763798971005,3.2542795,127.08,127.05,1.79695106]
[1763798972011,0.0542795,127.08,127.05,1.79695106]
[1763798972503,0.0542795,127.08,127.05,8.88595106]
[1763798972699,3.2542795,127.08,127.05,8.88595106]
[1763798972894,3.2542795,127.08,127.05,0.05695106]
[1763798973104,3.2,127.06,127.05,0.05695106]
[1763798973408,9.0917021,127.06,127.05,0.05695106]
[1763798974505,15.02189701,127.06,127.05,0.05695106]
[1763798976422,14.84189701,127.06,127.05,0.05695106]
[1763798978309,8.9117021,127.06,127.05,0.05695106]
[1763798978609,14.84505763,127.06,127.05,0.05695106]
[1763798982809,3.02,127.05,127.02,1.75]
[1763798983710,3.07528179,127.05,127.02,1.75]
[1763798985710,3.02,127.03,127.01,16.54]
[1763798986600,3.02,127.02,126.99,1.75]
[1763798986906,2.09350762,127.03,126.94,110.3655]
[1763798986907,3.02,127.0,126.96,1.75]
[1763798987111,8.90535424,126.99,126.96,1.75]
[1763798987302,3.02,126.98,126.94,1.75]
[1763798987498,0.05363607,126.99,126.94,114.21020762]
[1763798987706,0.05363607,126.99,126.98,1.75]
[1763798990308,5.87818076,127.02,127.0,1.75]
[1763798990514,3.02,127.04,127.0,1.75]
[1763798990814,5.87824513,127.03,127.0,1.75]
[1763798991116,3.02,127.04,127.0,1.75]
[1763798991414,5.92966003,127.03,127.01,1.80519587]
[1763798991717,0.05141665,127.03,127.01,1.80519587]
[1763798992218,3.07141665,127.03,127.01,0.05519587]
[1763798995921,0.05141665,127.03,127.01,1.80519587]
[1763798996717,3.02,127.06,127.03,1.75]
[1763798997213,3.02,127.06,127.01,8.89599587]
[1763798997420,3.02,127.06,127.01,25.43599587]
[1763798997614,3.07199926,127.05,127.01,25.43599587]
[1763798997819,3.07199926,127.05,127.02,1.75]
[1763798999125,0.05199926,127.05,127.02,1.75]
[1763798999821,0.05199926,127.05,127.04,1.75]
[1763799001915,7.0864,127.1,127.06,1.75]
[1763799001916,3.02,127.1,127.06,1.75]
[1763799002116,5.88578819,127.09,127.06,1.75]
[1763799002316,3.02,127.12,127.06,1.75]
[1763799002622,8.90645548,127.11,127.06,1.75]
[1763799002819,0.05935752,127.1,127.07,0.05317948]
[1763799003018,0.05935752,127.1,127.07,8.89107948]
[1763799003225,0.05935752,127.1,127.07,0.05317948]
[1763799003226,3.02,127.08,127.07,0.05317948]
[1763799003416,8.90384349,127.08,127.07,0.05317948]
[1763799004214,3.02,127.07,127.02,18.29]
[1763799004522,3.02,127.07,127.02,1.75]
[1763799005224,3.02,127.05,127.03,0.05861136]
[1763799005930,0.05249845,127.06,127.03,1.79861136]
[1763799007424,0.05249845,127.06,127.05,1.74]
[1763799008525,3.26249845,127.06,127.03,1.79861136]
[1763799008733,3.26249845,127.06,127.03,18.33861136]
[1763799011248,0.05249845,127.06,127.04,1.74]
[1763799012243,0.05249845,127.06,127.04,8.8295]
[1763799012438,0.05249845,127.06,127.05,1.74]
[1763799014442,5.90228783,127.1,127.07,1.74]
[1763799014639,3.21,127.11,127.08,1.74]
[1763799014840,3.21,127.13,127.08,1.74]
[1763799015041,17.51875557,127.14,127.08,1.74]
[1763799015042,9.11296281,127.12,127.08,1.74]
[1763799015344,5.90296281,127.11,127.08,1.74]
[1763799015544,3.21,127.11,127.08,1.74]
[1763799015849,0.05086803,127.11,127.08,1.79708967]
[1763799016648,0.05086803,127.11,127.09,1.74]
[1763799018643,0.05086803,127.11,127.09,8.8267]
[1763799018953,0.05086803,127.11,127.1,1.74]
[1763799019150,10.2927,127.17,127.11,8.8256]
[1763799019355,9.10548267,127.16,127.13,1.74]
[1763799019550,3.21,127.16,127.12,16.54]
[1763799019755,3.21,127.16,127.12,18.28]
[1763799019956,3.21,127.15,127.12,18.28]
[1763799020358,3.26141055,127.15,127.12,18.33957806]
[1763799023053,3.26141055,127.15,127.12,0.05957806]
[1763799024159,3.21,127.13,127.12,0.05957806]
[1763799045996,3.24141055,127.15,127.12,1.79957806]
[1763799046192,9.08924138,127.14,127.12,1.79957806]
[1763799046402,3.19,127.14,127.12,1.79957806]
[1763799046594,0.05141055,127.15,127.12,1.79957806]
[1763799047689,0.05141055,127.15,127.13,8.8246]
[1763799048091,0.05141055,127.15,127.14,1.74]
[1763799048397,29.41717203,127.2,127.16,1.74]
[1763799048398,5.89838635,127.18,127.16,1.74]
[1763799048596,3.19,127.2,127.16,1.74]
[1763799048794,5.89873545,127.19,127.16,1.74]
[1763799049093,3.19,127.2,127.16,1.74]
[1763799049290,9.13681067,127.19,127.17,1.79724899]
[1763799049489,3.19,127.18,127.17,0.05724899]
[1763799052399,9.08353528,127.18,127.17,0.05724899]
[1763799053097,3.19,127.17,127.13,1.74]
[1763799053803,3.19,127.16,127.1,25.3459]
[1763799054004,3.19,127.16,127.11,1.74]
[1763799054205,3.25031599,127.15,127.12,1.8005161]
[1763799055300,3.25031599,127.15,127.12,0.0605161]
[1763799055607,5.89542131,127.14,127.12,0.0605161]
[1763799055899,3.19,127.13,127.12,0.0605161]
[1763799059116,9.08863463,127.13,127.12,0.0605161]
[1763799059308,3.19,127.12,127.06,8.8281]
[1763799059609,3.19,127.1,127.07,1.8]
[1763799060408,3.25047391,127.1,127.07,1.85448252]
[1763799060615,5.34279337,127.1,127.07,0.05448252]
[1763799060815,3.19,127.09,127.07,0.05448252]
[1763799062011,2.15279337,127.1,127.07,1.85448252]
[1763799062212,0.06047391,127.1,127.07,1.85448252]
[1763799062608,0.06047391,127.1,127.09,1.8]
[1763799064718,3.19,127.13,127.1,1.8]
[1763799064924,3.19,127.13,127.11,1.8]
[1763799065216,3.19,127.13,127.1,18.32]
[1763799065609,3.24905344,127.13,127.1,18.32]
[1763799065815,3.24905344,127.13,127.1,18.37719259]
[1763799066114,3.24905344,127.13,127.11,1.8]
[1763799066318,0.05905344,127.13,127.11,1.8]
[1763799067038,3.12905344,127.13,127.11,1.8]
[1763799067216,3.12905344,127.13,127.1,25.46329259]
[1763799069319,3.12905344,127.13,127.1,16.57719259]
[1763799069818,8.96090067,127.12,127.1,16.57719259]
[1763799070116,3.07,127.12,127.1,16.57719259]
[1763799070611,3.07,127.12,127.1,18.37719259]
[1763799071713,0.05905344,127.13,127.11,1.8]
[1763799075918,0.05905344,127.13,127.11,8.8855]
[1763799076123,3.07,127.17,127.12,1.8]
[1763799076345,3.07,127.15,127.12,1.8]
[1763799077013,3.12167885,127.15,127.12,1.8589963]
[1763799078030,3.12167885,127.15,127.12,0.0589963]
[1763799078219,8.94928035,127.14,127.12,0.0589963]
[1763799078525,3.07,127.14,127.12,0.0589963]
[1763799080625,5.16231946,127.13,127.12,0.0589963]
[1763799080929,3.07,127.12,127.07,16.52]
[1763799081229,3.07,127.1,127.07,18.38]
[1763799082024,3.12118738,127.1,127.07,18.43070319]
[1763799083735,3.07,127.08,127.07,0.05070319]
[1763799084029,15.11034043,127.08,127.07,0.05070319]
[1763799084233,3.07,127.07,127.03,25.4701]
[1763799084431,3.07,127.06,127.03,25.4701]
[1763799084631,3.07,127.06,127.03,18.38]
[1763799085323,3.12706873,127.06,127.03,18.43411335]
[1763799085527,3.12706873,127.06,127.03,0.05411335]
[1763799085722,3.07,127.04,127.03,0.05411335]
[1763799086233,3.12706873,127.06,127.03,0.05411335]
[1763799087834,3.12706873,127.06,127.03,1.91411335]
[1763799088035,3.12706873,127.06,127.03,0.05411335]
[1763799089134,3.07,127.04,127.03,0.05411335]
[1763799090439,3.07,127.04,127.0,16.52]
[1763799091142,3.07,127.06,127.03,1.86]
[1763799091652,3.12220523,127.06,127.03,1.91106499]
[1763799092142,3.12220523,127.06,127.03,0.05106499]
[1763799095944,3.12220523,127.06,127.03,1.91106499]
[1763799096635,0.05220523,127.06,127.03,9.00106499]
[1763799096843,0.05220523,127.06,127.04,1.86]
[1763799098248,0.05220523,127.06,127.04,8.9495]
[1763799099042,0.05220523,127.06,127.05,1.86]
[1763799106155,0.05220523,127.06,127.04,16.54]
[1763799106156,3.26220523,127.06,127.04,16.54]
[1763799106348,0.05220523,127.06,127.05,1.86]
[1763799107650,5.30231946,127.14,127.06,1.81]
[1763799107850,119.86267203,127.17,127.1,1.81]
[1763799107851,3.21,127.13,127.1,1.81]
[1763799108154,3.21,127.15,127.11,1.81]
[1763799108744,3.26149448,127.14,127.12,0.0540856]
[1763799109256,3.21,127.13,127.12,0.0540856]
[1763799110250,3.21,127.12,127.08,16.54]
[1763799110550,3.21,127.11,127.07,1.81]
[1763799111259,3.26460091,127.1,127.08,0.05613158]
[1763799112652,10.35100091,127.1,127.08,0.05613158]
[1763799112955,3.21,127.09,127.08,0.05613158]
[1763799119560,3.26460091,127.1,127.08,0.05613158]
[1763799121755,3.26460091,127.1,127.06,1.87]
[1763799121756,0.05460091,127.1,127.06,1.87]
[1763799122764,0.05460091,127.1,127.07,1.9101468]
[1763799123560,0.05460091,127.1,127.07,8.9980468]
[1763799124764,3.26460091,127.1,127.07,8.9980468]
[1763799127261,3.26460091,127.1,127.08,1.87]
[1763799127467,0.05460091,127.1,127.09,1.87]
[1763799130066,3.03,127.13,127.11,1.87]
[1763799130265,5.88071552,127.12,127.11,1.87]
[1763799130464,5.88071552,127.12,127.1,8.9562]
[1763799130770,3.03,127.14,127.11,8.9556]
[1763799130969,5.88023648,127.13,127.11,8.9556]
[1763799131170,0.05335698,127.13,127.11,9.00570434]
[1763799131362,0.05335698,127.13,127.12,1.87]
[1763799131563,0.05335698,127.13,127.12,18.41]
[1763799137263,3.03,127.19,127.13,1.87]
[1763799137465,14.94653926,127.18,127.13,1.87]
[1763799137764,3.03,127.22,127.17,1.87]
[1763799137963,3.03,127.22,127.15,110.1864]
[1763799137964,3.03,127.21,127.14,1.87]
[1763799138161,3.08511613,127.19,127.16,1.92755464]
[1763799138465,3.08511613,127.19,127.16,0.05787737]
[1763799138665,3.08511613,127.19,127.16,1.92787737]
[1763799142274,3.08511613,127.19,127.16,18.44787737]
[1763799144163,3.08511613,127.19,127.16,1.92787737]
[1763799144368,3.08511613,127.19,127.16,18.44787737]
[1763799147075,3.08511613,127.19,127.16,25.53067737]
[1763799147279,3.08511613,127.19,127.17,1.87]
[1763799148880,3.08511613,127.19,127.16,25.53067737]
[1763799149282,3.08511613,127.19,127.17,1.87]
[1763799151284,0.05511613,127.19,127.18,1.87]
[1763799158299,3.35511613,127.19,127.16,18.41787737]
[1763799158900,3.35511613,127.19,127.17,1.84]
[1763799159997,0.05511613,127.19,127.17,8.9224]
[1763799160199,0.05511613,127.19,127.18,1.84]
[1763799169913,0.05511613,127.19,127.18,18.36]
[1763799182313,5.92082178,127.19,127.18,18.36]
[1763799182927,0.05511613,127.19,127.18,18.36]
[1763799184729,17.62076625,127.23,127.19,1.84]
[1763799184730,7.24156625,127.23,127.19,1.84]
[1763799184925,9.1673197,127.22,127.19,1.79]
[1763799185229,5.86783784,127.21,127.2,14.53]
[1763799186037,2.99,127.2,127.19,0.05819912]
[1763799186225,8.85783784,127.2,127.19,0.05819912]
[1763799186625,2.99,127.2,127.19,0.05819912]
[1763799187029,8.8587946,127.2,127.19,0.05819912]
[1763799187233,2.99,127.2,127.19,0.05819912]
[1763799187429,8.8590634,127.2,127.19,0.05819912]
[1763799187830,14.75472816,127.2,127.19,0.05819912]
[1763799188325,14.75509026,127.2,127.19,0.05819912]
[1763799189130,2.99,127.19,127.17,16.52]
[1763799189334,5.8694255,127.18,127.17,16.52]
[1763799189838,8.8594255,127.18,127.17,16.52]
[1763799190535,2.99,127.17,127.16,0.05527827]
[1763799190724,14.71141285,127.17,127.16,0.05527827]
[1763799191128,14.71141285,127.17,127.13,2.08915186]
[1763799191129,2.99,127.16,127.13,2.08915186]
[1763799191435,2.99,127.14,127.12,16.52]
[1763799191643,8.8594255,127.13,127.12,16.52]
[1763799192029,2.99,127.12,127.08,2.08915186]
[1763799192231,2.99,127.1,127.09,0.06054345]
[1763799193138,8.84389544,127.1,127.09,0.06054345]
[1763799193339,3.04977013,127.11,127.09,1.87054345]
[1763799193644,3.04977013,127.11,127.09,0.06054345]
[1763799195542,0.05977013,127.11,127.1,2.08915186]
[1763799199939,0.05977013,127.11,127.1,3.89915186]
[1763799200536,2.99,127.15,127.11,1.81]
[1763799200843,2.99,127.15,127.12,2.08915186]
[1763799201247,2.99,127.15,127.13,1.81]
[1763799201441,3.04515471,127.15,127.13,1.86615974]
[1763799201840,3.04515471,127.15,127.13,0.05615974]
[1763799203747,3.04515471,127.15,127.09,18.33]
[1763799203748,115.32750657,127.15,127.09,16.52]
[1763799204048,2.99,127.13,127.09,16.52]
[1763799204248,2.99,127.11,127.07,2.08915186]
[1763799204547,2.99,127.08,127.03,2.08915186]
[1763799204845,2.99,127.06,127.04,0.05447427]
[1763799205737,0.05549763,127.07,127.06,1.87]
[1763799206459,0.05549763,127.07,127.05,2.08915186]
[1763799206747,3.04549763,127.07,127.05,2.08915186]
[1763799206945,0.05549763,127.07,127.05,3.95915186]
[1763799207441,0.05549763,127.07,127.06,1.87]
[1763799208947,0.05549763,127.07,127.05,20.49915186]
[1763799209249,0.05549763,127.07,127.06,1.87]
[1763799210247,2.99,127.12,127.07,1.87]
[1763799210442,2.99,127.12,127.09,1.87]
[1763799211147,2.99,127.12,127.08,3.95915186]
[1763799211345,3.04955069,127.12,127.09,0.05638149]
[1763799212043,0.05955069,127.12,127.09,1.92638149]
[1763799212743,0.05955069,127.12,127.1,3.95915186]
[1763799213647,0.05955069,127.12,127.1,11.04525186]
[1763799214143,0.05955069,127.12,127.1,1.87]
[1763799216053,3.32955069,127.12,127.09,23.68308149]
[1763799216242,3.32955069,127.12,127.09,25.55308149]
[1763799216441,3.32955069,127.12,127.1,1.87]
[1763799217945,3.32955069,127.12,127.09,23.68308149]
[1763799218145,0.05955069,127.12,127.1,1.87]
[1763799218750,3.32955069,127.12,127.09,16.59638149]
[1763799218950,3.32955069,127.12,127.09,0.05638149]
[1763799219742,3.32955069,127.12,127.09,1.92638149]
[1763799221348,3.32955069,127.12,127.09,9.01318149]
[1763799221553,0.05955069,127.12,127.11,1.87]
[1763799222856,0.05955069,127.12,127.1,3.95915186]
[1763799223349,0.05955069,127.12,127.1,11.04535186]
[1763799223750,0.05955069,127.12,127.11,1.87]
[1763799228058,0.05955069,127.12,127.11,3.95915186]
[1763799231953,3.32955069,127.12,127.11,2.08915186]
[1763799232155,3.32955069,127.12,127.1,16.52]
[1763799235152,5.85830621,127.11,127.1,16.52]
[1763799235765,5.85830621,127.11,127.1,18.39]
[1763799235959,0.05955069,127.12,127.11,1.87]
[1763799236158,5.91872091,127.12,127.11,1.87]
[1763799238766,5.91872091,127.12,127.11,3.95915186]
[1763799238969,0.05955069,127.12,127.11,3.95915186]
[1763799240872,3.32955069,127.12,127.1,16.52]
[1763799241068,3.32955069,127.12,127.1,1.87]
[1763799242075,3.32955069,127.12,127.09,11.10233335]
[1763799242273,3.32955069,127.12,127.1,1.87]
[1763799242770,3.32955069,127.12,127.1,8.9562]
[1763799242771,0.05955069,127.12,127.1,8.9562]
[1763799243276,0.05955069,127.12,127.11,1.87]
[1763799243480,0.05955069,127.12,127.11,3.95915186]
[1763799244775,0.05955069,127.12,127.11,1.87]
[1763799249582,5.91660563,127.12,127.11,1.87]
[1763799250581,5.91660563,127.12,127.1,25.4762]
[1763799250882,0.05955069,127.12,127.11,1.87]
[1763799251082,5.92216564,127.12,127.11,1.87]
[1763799252480,9.72873131,127.17,127.13,1.87]
[1763799252481,10.49930147,127.17,127.13,1.87]
[1763799252689,14.92898203,127.16,127.13,1.87]
[1763799252885,5.86552241,127.15,127.13,1.87]
[1763799253087,5.86552241,127.14,127.13,1.87]
[1763799254290,0.05806092,127.15,127.13,1.87]
[1763799254590,0.05806092,127.15,127.14,1.87]
[1763799254798,5.92210343,127.15,127.14,1.87]
[1763799255594,3.28,127.14,127.13,16.52]
[1763799255787,9.14435122,127.14,127.13,16.52]
[1763799255985,5.86435122,127.14,127.13,16.52]
[1763799257693,5.86435122,127.14,127.13,18.39]
[1763799262801,0.05806092,127.15,127.14,1.87]
[1763799263002,5.92284203,127.15,127.14,1.87]
[1763799263299,0.05806092,127.15,127.14,1.87]
[1763799272911,10.49930147,127.19,127.17,1.87]
[1763799273104,5.83181895,127.18,127.16,23.6028]
[1763799273301,3.28,127.17,127.14,1.87]
[1763799273614,3.28,127.17,127.15,18.39]
[1763799274011,9.10860033,127.16,127.15,0.05332876]
[1763799274215,14.75606693,127.16,127.15,0.05332876]
[1763799274405,3.28,127.15,127.12,1.87]
[1763799274613,5.82860033,127.14,127.12,1.87]
[1763799274912,3.28,127.15,127.12,1.87]
[1763799275122,9.10458505,127.14,127.12,1.87]
[1763799275312,3.33590173,127.14,127.12,1.92092001]
[1763799277407,3.31590173,127.14,127.12,1.92092001]
[1763799280828,0.05590173,127.14,127.12,9.00612001]
[1763799281012,0.05590173,127.14,127.13,1.86]
[1763799282821,3.26,127.18,127.15,1.86]
[1763799283118,5.82790834,127.17,127.16,1.86]
[1763799283519,3.26,127.18,127.16,1.86]
[1763799283714,3.3202442,127.18,127.16,1.91096161]
[1763799285420,0.0602442,127.18,127.16,1.91096161]
[1763799286710,0.0602442,127.18,127.16,8.99386161]
[1763799287220,0.0602442,127.18,127.17,1.86]
[1763799288016,10.47930147,127.23,127.17,1.86]
[1763799288221,3.26,127.21,127.19,1.86]
[1763799288812,3.26,127.23,127.19,1.86]
[1763799289007,9.07829982,127.22,127.19,1.86]
[1763799289209,3.31287276,127.22,127.2,1.92033894]
[1763799289414,0.05287276,127.22,127.2,1.92033894]
[1763799289716,0.05287276,127.22,127.21,1.86]
[1763799294829,3.26,127.26,127.21,1.86]
[1763799295029,3.26,127.26,127.23,1.86]
[1763799295925,3.32049146,127.26,127.23,1.91456751]
[1763799296522,3.32049146,127.26,127.23,0.05456751]
[1763799296723,3.32049146,127.26,127.23,1.91456751]
[1763799301227,3.26,127.25,127.18,1.86]
[1763799301422,3.26,127.25,127.18,18.36]
[1763799301619,3.26,127.24,127.18,18.36]
[1763799301818,3.26,127.22,127.18,18.36]
[1763799302432,3.26,127.2,127.19,0.05607646]
[1763799306146,3.06,127.19,127.13,11.14386614]
[1763799306432,3.06,127.19,127.14,1.97]
[1763799307140,3.06,127.23,127.19,1.97]
[1763799307329,3.06,127.23,127.2,4.11257237]
[1763799307639,0.05967853,127.23,127.21,1.97]
[1763799308729,0.05967853,127.23,127.22,4.05966614]
[1763799310859,0.05967853,127.23,127.22,20.55966614]
[1763799312237,3.06,127.27,127.24,1.97]
[1763799312430,3.06,127.27,127.24,4.05966614]
[1763799312631,3.06,127.27,127.24,1.97]
[1763799313136,3.1151696,127.27,127.24,2.02169282]
[1763799313333,3.1151696,127.27,127.24,0.05169282]
[1763799315139,3.1151696,127.27,127.24,2.02169282]
[1763799316331,3.1151696,127.27,127.24,0.05169282]
[1763799317942,10.1923696,127.27,127.24,0.05169282]
[1763799318244,3.06,127.25,127.24,0.05169282]
[1763799319836,113.1743,127.24,127.17,1.97]
[1763799320147,3.06,127.21,127.14,4.10966614]
[1763799320337,3.06,127.21,127.15,2.02]
[1763799320942,3.11538886,127.19,127.17,0.05168832]
[1763799327738,3.11538886,127.19,127.13,18.52]
[1763799327739,3.06,127.17,127.13,18.52]
[1763799328848,3.11634584,127.16,127.14,0.0576517]
[1763799329439,3.06,127.15,127.14,0.0576517]
[1763799329835,3.06,127.15,127.11,16.5]
[1763799330038,3.06,127.14,127.11,16.5]
[1763799330846,3.06,127.14,127.11,16.55283123]
[1763799331246,5.14966614,127.14,127.11,16.55283123]
[1763799331442,3.06,127.13,127.11,16.55283123]
[1763799331648,3.11897804,127.13,127.11,16.55283123]
[1763799332352,0.05897804,127.13,127.12,2.02]
[1763799333046,0.05897804,127.13,127.11,25.65843123]
[1763799333444,0.05897804,127.13,127.12,2.02]
[1763799333940,0.05897804,127.13,127.11,25.65843123]
[1763799335355,0.05897804,127.13,127.12,2.02]
[1763799339652,0.05897804,127.13,127.11,25.66843123]
[1763799340957,0.05897804,127.13,127.11,18.58283123]
[1763799341461,3.13897804,127.13,127.11,0.05283123]
[1763799342156,0.05897804,127.13,127.11,2.08283123]
[1763799343060,3.13897804,127.13,127.11,2.08283123]
[1763799343251,3.13897804,127.13,127.11,0.05283123]
[1763799344659,3.13897804,127.13,127.11,2.08283123]
[1763799344846,0.05897804,127.13,127.11,2.08283123]
[1763799345447,0.05897804,127.13,127.11,9.16853123]
[1763799346453,0.05897804,127.13,127.12,2.03]
[1763799347060,3.08,127.15,127.12,9.1147]
[1763799347365,3.08,127.18,127.13,18.53]
[1763799347557,3.08,127.17,127.13,18.53]
[1763799348366,3.13640297,127.16,127.14,0.05954076]
[1763799349565,0.05640297,127.16,127.15,2.03]
[1763799349865,3.13640297,127.16,127.14,7.14354076]
[1763799351465,0.05640297,127.16,127.15,2.03]
[1763799354558,0.05640297,127.16,127.14,9.17354076]
[1763799354766,0.05640297,127.16,127.15,2.03]
[1763799358759,0.05640297,127.16,127.15,18.53]
[1763799359667,3.08,127.22,127.17,2.03]
[1763799359865,8.85975416,127.21,127.17,2.03]
[1763799360171,3.08,127.21,127.17,2.03]
[1763799360871,3.13399713,127.2,127.18,0.05909847]
[1763799362167,8.87089473,127.19,127.18,0.05909847]
[1763799363270,14.88340891,127.19,127.18,0.05909847]
[1763799364060,8.87089473,127.19,127.18,0.05909847]
[1763799364262,14.88681697,127.19,127.18,0.05909847]
[1763799364462,3.08,127.18,127.14,23.5839]
[1763799364670,3.08,127.16,127.14,18.53]
[1763799365459,3.08,127.16,127.14,2.03]
[1763799365659,3.1309192,127.16,127.14,2.08407659]
[1763799365859,3.2609192,127.16,127.14,2.08407659]
[1763799366062,0.0509192,127.16,127.14,2.08407659]
[1763799367071,0.0509192,127.16,127.14,25.66797659]
[1763799367977,0.0509192,127.16,127.15,2.03]
[1763799368867,15.03341785,127.21,127.18,2.03]
[1763799369183,11.82341785,127.2,127.18,2.03]
[1763799369479,3.21,127.21,127.19,2.03]
[1763799369871,14.29770147,127.25,127.19,2.03]
[1763799370172,0.05917773,127.21,127.2,7.0806]
[1763799370475,0.0543255,127.22,127.2,2.03]
[1763799370771,0.0543255,127.22,127.21,2.03]
[1763799371782,3.2643255,127.22,127.2,7.13344342]
[1763799371974,0.0543255,127.22,127.2,2.08274342]
[1763799372475,3.2643255,127.22,127.2,0.05274342]
[1763799374004,3.21,127.21,127.19,16.20879659]
[1763799374377,3.21,127.21,127.15,7.0831]
[1763799374576,3.21,127.19,127.15,23.5831]
[1763799374976,0.05997114,127.18,127.16,0.05809012]
[1763799375178,3.26997114,127.18,127.16,0.05809012]
[1763799377987,10.35197114,127.18,127.16,0.05809012]
[1763799378281,3.21,127.16,127.1,2.08]
[1763799378483,3.21,127.15,127.11,18.63]
[1763799379082,3.21,127.13,127.12,0.05033322]
[1763799380580,8.99381678,127.13,127.12,0.05033322]
[1763799381186,3.21,127.13,127.12,0.05033322]
[1763799386184,3.26421718,127.14,127.12,0.05033322]
[1763799389196,3.26421718,127.14,127.12,2.18033322]
[1763799389392,3.26421718,127.14,127.12,0.05033322]
[1763799389894,0.05421718,127.14,127.13,2.13]
[1763799390081,0.05421718,127.14,127.12,0.05033322]
[1763799390286,3.26421718,127.14,127.12,0.05033322]
[1763799390686,3.26421718,127.14,127.12,2.18033322]
[1763799391393,0.05421718,127.14,127.12,2.18033322]
[1763799392984,0.05421718,127.14,127.12,9.26543322]
[1763799393184,3.21,127.18,127.13,2.13]
[1763799394200,3.26689165,127.17,127.14,2.1883841]
[1763799394696,3.26689165,127.17,127.14,9.2722841]
[1763799394895,3.26689165,127.17,127.15,2.13]
[1763799396195,0.05689165,127.17,127.15,9.2134]
[1763799396397,0.05689165,127.17,127.16,2.14]
[1763799396591,3.05,127.21,127.16,2.14]
[1763799396798,3.05,127.21,127.18,2.14]
[1763799397698,3.10379126,127.21,127.18,2.19204691]
[1763799398301,3.10379126,127.21,127.18,0.05204691]
[1763799399600,3.05,127.2,127.18,0.05204691]
[1763799400291,3.10379126,127.21,127.18,2.19204691]
[1763799400595,0.05379126,127.21,127.18,2.19204691]
[1763799400803,3.10379126,127.21,127.18,2.19204691]
[1763799401586,0.05379126,127.21,127.19,2.14]
[1763799402398,0.05379126,127.21,127.2,18.64]
[1763799403200,3.10379126,127.21,127.18,18.69204691]
[1763799403401,3.10379126,127.21,127.18,0.05204691]
[1763799405098,10.18409126,127.21,127.18,0.05204691]
[1763799405296,3.05,127.2,127.18,0.05204691]
[1763799405702,3.05,127.19,127.18,0.05204691]
[1763799405899,3.05,127.19,127.18,0.00204691]
[1763799406300,8.82919481,127.19,127.18,0.00204691]
[1763799406496,10.40919481,127.19,127.18,0.00204691]
[1763799406699,13.67627643,127.19,127.18,0.00204691]
[1763799407399,10.40919481,127.19,127.18,0.00204691]
[1763799407593,8.82919481,127.19,127.18,0.00204691]
[1763799408708,3.05,127.19,127.18,0.00204691]
[1763799411606,3.05,127.2,127.18,0.00204691]
[1763799415310,0.05379126,127.21,127.18,2.19204691]
[1763799415311,3.10379126,127.21,127.18,2.19204691]